bitfinex-derivatives/quotes_BTCF0:USTF0_20251210
["timestamp","ask_amount","ask_price","bid_price","bid_amount"]
[1765370900873,0.05688,91999.0,91998.0,0.08764855]
[1765370904690,0.0677488,91999.0,91998.0,0.08764855]
[1765370904992,0.05688,91999.0,91998.0,0.08764855]
[1765370905392,0.02928,91999.0,91998.0,0.08764855]
[1765370905897,0.05904,91999.0,91998.0,0.08764855]
[1765370906186,0.0699088,91999.0,91998.0,0.08764855]
[1765370910897,0.0699088,91999.0,91998.0,0.03146855]
[1765370911096,0.0699088,91999.0,91998.0,0.06079156]
[1765370911806,0.0699088,91999.0,91998.0,0.03146855]
[1765370912191,0.0699088,91999.0,91998.0,0.06079156]
[1765370912393,0.0699088,91999.0,91998.0,0.06033855]
[1765370912700,0.0699088,91999.0,91998.0,0.08956855]
[1765370912900,0.0699088,91999.0,91998.0,0.03146855]
[1765370913100,0.0699088,91999.0,91998.0,0.06033855]
[1765370913297,0.0699088,91999.0,91998.0,0.08956855]
[1765370915202,0.0699088,91999.0,91998.0,0.06033855]
[1765370916502,0.0699088,91999.0,91998.0,0.08956855]
[1765370919607,0.0663379,92006.0,92005.0,0.07569]
[1765370919808,0.0663379,92006.0,92005.0,0.13551063]
[1765370920493,0.0663379,92006.0,92005.0,0.10615855]
[1765370921009,0.0673379,92006.0,92005.0,0.10615855]
[1765370921399,0.0683379,92006.0,92005.0,0.10615855]
[1765370921906,0.0683379,92006.0,92005.0,0.08856855]
[1765370922808,0.0683379,92006.0,92005.0,0.05933855]
[1765370923004,0.0683379,92006.0,92005.0,0.03046855]
[1765370923709,0.0683379,92006.0,92005.0,0.08856855]
[1765370924211,0.0683379,92006.0,92005.0,0.03046855]
[1765370924413,0.0683379,92006.0,92005.0,0.08856855]
[1765370924813,0.0683379,92006.0,92005.0,0.03046855]
[1765370927408,0.0683379,92006.0,92005.0,0.08856855]
[1765370929419,0.0683379,92006.0,92005.0,0.10615855]
[1765370929602,0.002,92006.0,92005.0,0.10615855]
[1765370929927,0.0302,92006.0,92005.0,0.10615855]
[1765370930103,0.002,92006.0,92005.0,0.10615855]
[1765370930515,0.001,92006.0,92005.0,0.10615855]
[1765370930706,0.11348514,92015.0,92008.0,0.0581]
[1765370930901,0.00108679,92015.0,92008.0,0.14724149]
[1765370931410,0.00108679,92015.0,92008.0,0.08856855]
[1765370931811,0.0556331,92009.0,92008.0,0.08856855]
[1765370933312,0.0556331,92009.0,92008.0,0.08956855]
[1765370939311,0.0556331,92009.0,92008.0,0.12863359]
[1765370940418,0.0556331,92009.0,92008.0,0.08956855]
[1765370940623,0.0283631,92009.0,92008.0,0.08956855]
[1765370941016,0.0001631,92009.0,92008.0,0.08956855]
[1765370941318,0.0585731,92009.0,92008.0,0.08956855]
[1765370943726,0.0585731,92009.0,92008.0,0.03146855]
[1765370943924,0.0585731,92009.0,92008.0,0.001]
[1765370948025,0.05841,91997.0,91996.0,0.08469771]
[1765370948218,0.92377,91997.0,91996.0,0.08607143]
[1765370948726,0.92377,91997.0,91996.0,0.05876143]
[1765370948926,0.92377,91997.0,91996.0,0.03067143]
[1765370949315,0.92377,91997.0,91996.0,0.03267143]
[1765370949827,0.92377,91997.0,91996.0,0.02625813]
[1765370950419,0.92377,91997.0,91996.0,0.02425813]
[1765370951422,0.92377,91997.0,91996.0,0.02225813]
[1765370953634,0.92377,91997.0,91996.0,0.001]
[1765370953832,0.56297,91997.0,91996.0,0.00047778]
[1765370954333,1.28457,91997.0,91996.0,0.00047778]
[1765370955429,1.28657,91997.0,91996.0,0.00047778]
[1765370955944,1.28457,91997.0,91996.0,0.00047778]
[1765370956126,1.28657,91997.0,91996.0,0.00047778]
[1765370956834,0.05626,91991.0,91990.0,0.0001631]
[1765370957036,0.0671297,91991.0,91990.0,0.0001631]
[1765370958030,0.15572046,91991.0,91990.0,0.0001631]
[1765370958231,0.0671314,91977.0,91976.0,0.02929771]
[1765370958533,0.0671319,91972.0,91971.0,0.02753]
[1765370958925,0.0671319,91972.0,91971.0,0.05673]
[1765370961836,0.0671319,91972.0,91971.0,0.0872875]
[1765370963840,0.0671319,91972.0,91971.0,0.05673]
[1765370966239,0.0671319,91972.0,91971.0,0.08687092]
[1765370966447,0.0671319,91972.0,91971.0,0.05673]
[1765370966738,0.0108717,91975.0,91970.0,0.01758]
[1765370966940,0.3608,91971.0,91970.0,0.0284522]
[1765370967127,0.82844,91971.0,91970.0,0.11532118]
[1765370967449,0.85617,91971.0,91970.0,0.11532118]
[1765370968037,0.82844,91971.0,91970.0,0.11532118]
[1765370970628,0.88469,91971.0,91970.0,0.11532118]
[1765370970833,0.92177,91971.0,91970.0,0.11532118]
[1765370972047,0.56097,91971.0,91970.0,0.11532118]
[1765370972544,0.56097,91971.0,91970.0,0.08686898]
[1765370972944,0.56097,91971.0,91970.0,0.11612585]
[1765370973339,0.56097,91971.0,91970.0,0.08686898]
[1765370973747,0.56097,91971.0,91970.0,0.11613687]
[1765370973946,0.56097,91971.0,91970.0,0.03013898]
[1765370976048,0.56097,91971.0,91970.0,0.05782898]
[1765370976243,0.56097,91971.0,91970.0,0.08489898]
[1765370976443,0.56097,91971.0,91970.0,0.08495584]
[1765370976840,0.010872,91972.0,91970.0,0.08495584]
[1765370977045,0.039482,91972.0,91971.0,0.08495584]
[1765370977245,0.544242,91972.0,91971.0,0.08495584]
[1765370977444,0.571882,91972.0,91971.0,0.11423748]
[1765370978147,0.50476,91972.0,91971.0,0.11423748]
[1765370978347,0.50476,91972.0,91971.0,0.08495584]
[1765370978554,0.56101,91972.0,91971.0,0.08495584]
[1765370978853,0.3608,91977.0,91976.0,0.0656315]
[1765370979054,0.8656,91977.0,91976.0,0.09582734]
[1765370979245,0.89421,91977.0,91976.0,0.09582734]
[1765370979740,0.8656,91977.0,91976.0,0.09582734]
[1765370979943,0.0001631,91981.0,91980.0,0.078311]
[1765370980142,0.0001631,91981.0,91980.0,0.10850684]
[1765370982354,0.0001631,91981.0,91980.0,0.11050684]
[1765370982850,0.0001631,91981.0,91980.0,0.11150684]
[1765370983549,0.0564131,91981.0,91980.0,0.09882684]
[1765370983943,0.0001631,91981.0,91980.0,0.11150684]
[1765370996863,0.067284,91981.0,91980.0,0.09882684]
[1765370997558,0.0564131,91981.0,91980.0,0.09882684]
[1765370998165,0.0001631,91981.0,91980.0,0.09882684]
[1765370998664,0.0001631,91981.0,91980.0,0.11150684]
[1765370999664,0.0582531,91981.0,91980.0,0.09882684]
[1765370999861,0.069124,91981.0,91980.0,0.08795584]
[1765371000065,0.069124,91981.0,91980.0,0.03319584]
[1765371000566,0.069124,91981.0,91980.0,0.10131155]
[1765371000764,0.069124,91981.0,91980.0,0.12930155]
[1765371002355,0.0582531,91981.0,91980.0,0.12930155]
[1765371003161,0.0582531,91981.0,91980.0,0.09027584]
[1765371003360,0.0582531,91981.0,91980.0,0.12930155]
[1765371003664,0.0582531,91981.0,91980.0,0.03319584]
[1765371005974,0.05809,91973.0,91972.0,0.03902571]
[1765371006167,0.05809,91973.0,91967.0,0.05853564]
[1765371006168,0.05809,91970.0,91968.0,0.03902571]
[1765371006365,0.05809,91969.0,91968.0,0.03902571]
[1765371006665,0.05809,91969.0,91968.0,0.06811571]
[1765371006864,0.05809,91969.0,91967.0,0.03902571]
[1765371006865,0.0108724,91968.0,91967.0,0.03902571]
[1765371007061,0.0108724,91968.0,91965.0,0.00108738]
[1765371007062,0.05809,91966.0,91965.0,0.00108738]
[1765371007470,0.05809,91966.0,91965.0,0.05816738]
[1765371008568,0.53357,91966.0,91965.0,0.05816738]
[1765371008757,0.56284,91966.0,91965.0,0.05816738]
[1765371009367,0.02857,91966.0,91965.0,0.05816738]
[1765371009562,0.56284,91966.0,91965.0,0.05816738]
[1765371009771,0.56284,91966.0,91965.0,0.03017738]
[1765371010157,0.56284,91966.0,91965.0,0.06088738]
[1765371010365,0.56284,91966.0,91965.0,0.00208738]
[1765371011069,0.56284,91966.0,91965.0,0.00308738]
[1765371011770,0.56284,91966.0,91965.0,0.00208738]
[1765371012566,0.56284,91966.0,91965.0,0.00108738]
[1765371015063,0.96284,91966.0,91965.0,0.00108738]
[1765371015867,0.05742,91963.0,91962.0,0.0001631]
[1765371016076,0.0843831,91962.0,91961.0,3.37e-06]
[1765371016370,0.0843831,91962.0,91942.0,0.03902571]
[1765371016577,0.05742,91943.0,91942.0,0.02867]
[1765371016780,0.5627,91943.0,91942.0,0.05838]
[1765371017366,0.05742,91941.0,91940.0,0.39055767]
[1765371017563,0.05742,91941.0,91940.0,0.36188767]
[1765371018072,0.05742,91941.0,91940.0,0.03120364]
[1765371018575,0.05742,91941.0,91940.0,0.05987364]
[1765371018962,0.05742,91941.0,91940.0,0.08958364]
[1765371020065,0.05742,91941.0,91940.0,0.03220364]
[1765371020474,0.05742,91941.0,91940.0,0.03320364]
[1765371020865,0.05742,91941.0,91940.0,0.06187364]
[1765371021065,0.05742,91941.0,91940.0,0.09158364]
[1765371022074,0.05742,91941.0,91940.0,0.03320364]
[1765371022281,0.05742,91941.0,91940.0,0.00308767]
[1765371025478,0.05742,91941.0,91933.0,0.0001631]
[1765371025479,0.0108764,91934.0,91933.0,0.0001631]
[1765371025678,0.42921667,91934.0,91933.0,0.03061463]
[1765371025978,0.42921667,91934.0,91933.0,0.0001631]
[1765371026768,0.42921667,91934.0,91933.0,0.0021631]
[1765371027074,0.93457667,91934.0,91933.0,0.0328331]
[1765371027274,0.93457667,91934.0,91933.0,0.0041631]
[1765371027988,0.93457667,91934.0,91933.0,0.0607531]
[1765371028174,0.93457667,91934.0,91933.0,0.0041631]
[1765371028684,0.93457667,91934.0,91933.0,0.0021631]
[1765371029184,0.93457667,91934.0,91933.0,0.0001631]
[1765371031076,0.0670183,91918.0,91917.0,0.00021759]
[1765371031275,0.57246809,91918.0,91917.0,0.03067283]
[1765371031680,0.57246809,91918.0,91917.0,0.06009283]
[1765371032377,0.57246809,91918.0,91917.0,0.00021759]
[1765371032587,0.57246809,91918.0,91917.0,0.00321759]
[1765371032784,0.57246809,91918.0,91917.0,0.00521759]
[1765371034089,0.57246809,91918.0,91908.0,0.00016319]
[1765371034090,0.0670194,91909.0,91908.0,0.00016319]
[1765371034386,0.57256394,91909.0,91908.0,0.0306211]
[1765371034789,0.57256394,91909.0,91908.0,0.00016319]
[1765371035178,0.57256394,91909.0,91908.0,0.030622]
[1765371035387,0.57256394,91909.0,91908.0,0.087962]
[1765371036175,0.57256394,91909.0,91908.0,0.089962]
[1765371036891,0.57256394,91909.0,91908.0,0.064042]
[1765371038087,0.57256394,91909.0,91908.0,0.091962]
[1765371040791,0.57256394,91909.0,91908.0,0.064042]
[1765371041997,0.93336394,91909.0,91908.0,0.064042]
[1765371042595,0.93336394,91909.0,91908.0,0.091962]
[1765371043795,0.93336394,91909.0,91908.0,0.034622]
[1765371044495,0.93336394,91909.0,91908.0,0.091962]
[1765371044889,0.93336394,91909.0,91908.0,0.109752]
[1765371045503,0.93336394,91909.0,91908.0,0.091962]
[1765371047997,0.42792394,91909.0,91908.0,0.091962]
[1765371048198,0.93332394,91909.0,91908.0,0.091962]
[1765371050998,0.57252394,91909.0,91908.0,0.091962]
[1765371051395,0.57252394,91909.0,91908.0,0.034622]
[1765371051995,0.93332394,91909.0,91908.0,0.034622]
[1765371053095,0.0841109,91896.0,91895.0,0.05853564]
[1765371053294,0.0841109,91896.0,91890.0,0.00108826]
[1765371053295,0.58955686,91896.0,91894.0,0.05853564]
[1765371053599,0.05614,91895.0,91894.0,0.08795564]
[1765371054000,0.05614,91895.0,91894.0,0.02942]
[1765371054200,0.05614,91895.0,91894.0,0.08795564]
[1765371054401,0.05614,91895.0,91894.0,0.02942]
[1765371054605,0.05614,91895.0,91894.0,0.07034]
[1765371054900,0.05614,91895.0,91894.0,0.013]
[1765371055403,0.05614,91895.0,91894.0,0.06953]
[1765371055599,0.01196686,91896.0,91895.0,0.05653]
[1765371055909,0.57219686,91896.0,91895.0,0.06753]
[1765371056094,0.58888686,91896.0,91895.0,0.011]
[1765371056493,0.58888686,91896.0,91895.0,0.06753]
[1765371056794,0.58888686,91896.0,91895.0,0.05653]
[1765371057000,0.58788686,91896.0,91895.0,0.05653]
[1765371057704,0.58788686,91896.0,91895.0,0.05853]
[1765371058303,0.57119686,91896.0,91895.0,0.05853]
[1765371060708,0.57119686,91896.0,91895.0,0.11706564]
[1765371061213,0.57119686,91896.0,91895.0,0.002]
[1765371061214,0.58814686,91896.0,91895.0,0.002]
[1765371061804,0.58814686,91896.0,91895.0,0.0305]
[1765371062003,0.57119686,91896.0,91895.0,0.0593]
[1765371064009,0.57115686,91896.0,91895.0,0.0593]
[1765371064911,0.58810686,91896.0,91895.0,0.002]
[1765371065112,0.58810686,91896.0,91895.0,0.03221524]
[1765371066313,0.58810686,91896.0,91895.0,0.09093243]
[1765371067205,0.58810686,91896.0,91895.0,0.03221524]
[1765371069712,0.58810686,91896.0,91895.0,0.06071524]
[1765371070317,0.58810686,91896.0,91895.0,0.03221524]
[1765371071112,0.58810686,91896.0,91895.0,0.09092943]
[1765371072110,0.57115686,91896.0,91895.0,0.14892943]
[1765371073898,0.58767686,91896.0,91895.0,0.14892943]
[1765371074101,0.58767686,91896.0,91895.0,0.09021524]
[1765371074915,0.02783,91889.0,91888.0,0.0108818]
[1765371075113,0.56303,91889.0,91888.0,0.0577818]
[1765371076204,0.56403,91889.0,91888.0,0.0577818]
[1765371076506,0.56403,91889.0,91888.0,0.0469]
[1765371076706,0.56403,91889.0,91888.0,0.0479]
[1765371077509,0.001,91889.0,91888.0,0.0479]
[1765371078017,0.50624,91889.0,91888.0,0.0479]
[1765371080205,0.53616,91889.0,91888.0,0.0479]
[1765371081108,0.53616,91889.0,91888.0,0.1262334]
[1765371081316,0.50624,91889.0,91888.0,0.1262334]
[1765371082106,0.50624,91889.0,91888.0,0.0479]
[1765371083222,0.50624,91889.0,91888.0,0.1262558]
[1765371086117,0.56399,91889.0,91888.0,0.1262558]
[1765371086924,0.56399,91889.0,91888.0,0.15683248]
[1765371089223,0.56399,91889.0,91888.0,0.03157668]
[1765371091618,0.56399,91889.0,91888.0,0.07847668]
[1765371091619,0.05875,91889.0,91888.0,0.07847668]
[1765371091824,0.56399,91889.0,91888.0,0.07847668]
[1765371092021,0.05875,91889.0,91888.0,0.07847668]
[1765371092324,0.56403,91889.0,91888.0,0.07847668]
[1765371092512,0.50628,91889.0,91888.0,0.07847668]
[1765371092820,0.53494,91889.0,91888.0,0.07847668]
[1765371093019,0.56203,91889.0,91888.0,0.07847668]
[1765371093322,0.05675,91889.0,91888.0,0.07847668]
[1765371095037,0.001,91889.0,91888.0,0.07847668]
[1765371095413,0.001,91889.0,91888.0,0.15683248]
[1765371095820,0.001,91889.0,91888.0,0.07847668]
[1765371097531,0.05675,91889.0,91888.0,0.07847668]
[1765371099234,0.05675,91889.0,91888.0,0.15681618]
[1765371100732,0.05675,91889.0,91888.0,0.10991618]
[1765371100934,0.05675,91889.0,91888.0,0.03157668]
[1765371101526,0.05675,91889.0,91888.0,0.07847668]
[1765371106540,0.0676318,91889.0,91888.0,0.08935858]
[1765371106836,0.0676318,91889.0,91888.0,0.04245858]
[1765371108640,0.0676318,91889.0,91888.0,0.03157668]
[1765371110051,0.0676318,91889.0,91888.0,0.07847668]
[1765371110242,0.56199,91889.0,91888.0,0.07847668]
[1765371110433,0.5728718,91889.0,91888.0,0.05502668]
[1765371110831,0.5728718,91889.0,91888.0,0.07847668]
[1765371111241,0.56199,91889.0,91888.0,0.07847668]
[1765371112649,0.50624,91889.0,91888.0,0.07847668]
[1765371113344,0.5349,91889.0,91888.0,0.07847668]
[1765371113848,0.56199,91889.0,91888.0,0.07847668]
[1765371119944,0.001,91889.0,91888.0,0.07847668]
[1765371120135,0.05772,91889.0,91888.0,0.07847668]
[1765371123248,0.0686018,91889.0,91888.0,0.07847668]
[1765371123653,0.05772,91889.0,91888.0,0.07847668]
[1765371124646,0.0686018,91889.0,91888.0,0.07847668]
[1765371124950,0.05772,91889.0,91888.0,0.07847668]
[1765371130655,0.05772,91889.0,91888.0,0.15683961]
[1765371134857,0.05772,91889.0,91888.0,0.07847668]
[1765371135856,0.02975,91889.0,91888.0,0.07847668]
[1765371136958,0.05852,91889.0,91888.0,0.07847668]
[1765371138355,0.05852,91889.0,91888.0,0.05502668]
[1765371138557,0.05852,91889.0,91888.0,0.03157668]
[1765371141759,0.05852,91889.0,91888.0,0.05502668]
[1765371142365,0.05852,91889.0,91888.0,0.03157668]
[1765371142762,0.05852,91889.0,91888.0,0.05502668]
[1765371143961,0.05852,91889.0,91888.0,0.07847668]
[1765371146565,0.001,91889.0,91888.0,0.15684215]
[1765371146863,8.596e-05,91896.0,91895.0,0.0577811]
[1765371147167,0.50217319,91904.0,91903.0,0.0577801]
[1765371147355,0.50217319,91904.0,91903.0,0.08835678]
[1765371147755,0.47252319,91904.0,91903.0,0.08898091]
[1765371148056,0.53143774,91904.0,91903.0,0.08898091]
[1765371148260,0.53143774,91904.0,91903.0,0.16726187]
[1765371148458,0.53143774,91904.0,91903.0,0.08898091]
[1765371148655,0.53143774,91904.0,91903.0,0.04208091]
[1765371148861,0.53143774,91904.0,91903.0,0.06553091]
[1765371149063,0.53543774,91904.0,91903.0,0.06553091]
[1765371150556,0.53543774,91904.0,91903.0,0.08898091]
[1765371150758,0.53643774,91904.0,91903.0,0.08898091]
[1765371152763,0.00527774,91904.0,91903.0,0.08898091]
[1765371152965,0.00527774,91904.0,91903.0,0.16726187]
[1765371153160,0.00527774,91904.0,91903.0,0.08898091]
[1765371154264,0.06187774,91904.0,91903.0,0.08898091]
[1765371154470,0.06087774,91904.0,91903.0,0.08898091]
[1765371154768,0.06187774,91904.0,91903.0,0.08898091]
[1765371154968,0.05787774,91904.0,91903.0,0.08898091]
[1765371155165,0.05987774,91904.0,91903.0,0.08898091]
[1765371155373,0.05887774,91904.0,91903.0,0.16716412]
[1765371155670,0.05687774,91904.0,91903.0,0.16716412]
[1765371155870,0.05887774,91904.0,91903.0,0.16716412]
[1765371156761,0.02972774,91904.0,91903.0,0.16716412]
[1765371156957,0.00227774,91904.0,91903.0,0.52796412]
[1765371157167,0.00227774,91904.0,91903.0,0.44978091]
[1765371158373,0.00027774,91904.0,91903.0,0.44978091]
[1765371158669,0.00127774,91904.0,91903.0,0.44978091]
[1765371158864,0.02872774,91904.0,91903.0,0.44978091]
[1765371159262,0.02872774,91904.0,91903.0,0.52792159]
[1765371161075,0.00127774,91904.0,91903.0,0.52792159]
[1765371161961,0.00127774,91904.0,91903.0,0.44978091]
[1765371162173,0.3608,91912.0,91911.0,0.0577792]
[1765371162376,0.41076,91913.0,91912.0,0.0469]
[1765371162577,0.41076,91913.0,91912.0,0.07810081]
[1765371162765,0.43821,91913.0,91912.0,0.07810081]
[1765371162966,0.46736,91913.0,91912.0,0.07810081]
[1765371165072,0.46836,91913.0,91912.0,0.07810081]
[1765371165276,0.47036,91913.0,91912.0,0.07810081]
[1765371168082,0.47036,91913.0,91912.0,0.05465081]
[1765371169272,0.47036,91913.0,91912.0,0.07810081]
[1765371171274,0.4812389,91913.0,91912.0,0.07810081]
[1765371171780,0.47036,91913.0,91912.0,0.07810081]
[1765371172271,0.47036,91913.0,91912.0,0.05465081]
[1765371172683,0.47036,91913.0,91912.0,0.07810081]
[1765371173380,0.47036,91913.0,91912.0,0.13669561]
[1765371174082,0.0596,91913.0,91912.0,0.13669561]
[1765371174377,0.0596,91913.0,91912.0,0.07810081]
[1765371181185,0.0596,91913.0,91912.0,0.15621965]
[1765371182484,0.0596,91913.0,91912.0,0.03120081]
[1765371182687,0.05644,91907.0,91906.0,0.0108797]
[1765371182877,0.05644,91904.0,91903.0,0.37184319]
[1765371183074,0.56152,91904.0,91903.0,0.00016319]
[1765371183392,0.92232,91904.0,91903.0,0.00016319]
[1765371183888,0.05644,91900.0,91899.0,0.0108806]
[1765371184077,0.0673205,91900.0,91899.0,0.0108806]
[1765371185386,0.0673205,91900.0,91899.0,0.0118806]
[1765371186987,0.0673205,91900.0,91899.0,0.0128806]
[1765371187984,0.0673205,91900.0,91899.0,0.002]
[1765371188673,0.0673205,91900.0,91899.0,0.04112061]
[1765371188879,0.0673205,91900.0,91899.0,0.002]
[1765371189192,0.0673205,91900.0,91899.0,0.001]
[1765371189573,0.0673205,91900.0,91896.0,0.03912061]
[1765371189781,0.0680108,91897.0,91896.0,0.03912061]
[1765371190584,0.0108814,91894.0,91893.0,0.0108813]
[1765371190779,0.5731314,91894.0,91893.0,0.0108813]
[1765371191583,0.5731314,91894.0,91893.0,0.0675713]
[1765371192389,0.5731314,91894.0,91893.0,0.0685713]
[1765371194588,0.5731314,91894.0,91893.0,0.09863254]
[1765371196785,0.5731714,91894.0,91893.0,0.09863254]
[1765371197389,0.5761714,91894.0,91893.0,0.09863254]
[1765371197690,0.5761714,91894.0,91893.0,0.09763254]
[1765371197893,0.5771714,91894.0,91893.0,0.09763254]
[1765371198692,0.5771714,91894.0,91893.0,0.08675124]
[1765371198986,0.5771714,91894.0,91893.0,0.07029254]
[1765371199191,0.5771714,91894.0,91893.0,0.09763254]
[1765371200798,0.5771714,91894.0,91893.0,0.13669998]
[1765371201390,0.5771714,91894.0,91893.0,0.10935998]
[1765371202492,0.5771714,91894.0,91893.0,0.09847868]
[1765371203292,0.5771714,91894.0,91893.0,0.05941124]
[1765371204094,0.5771714,91894.0,91893.0,0.08675124]
[1765371204494,0.0720114,91894.0,91893.0,0.08675124]
[1765371204699,0.5772114,91894.0,91893.0,0.08675124]
[1765371205097,0.004,91894.0,91893.0,0.44755124]
[1765371205303,0.004,91894.0,91893.0,0.52571588]
[1765371205989,0.06113,91894.0,91893.0,0.52571588]
[1765371206190,0.004,91894.0,91893.0,0.44755124]
[1765371206592,0.001,91894.0,91893.0,0.44755124]
[1765371206800,0.002,91894.0,91893.0,0.44755124]
[1765371207499,0.001,91894.0,91893.0,0.44755124]
[1765371207797,0.05813,91894.0,91893.0,0.44755124]
[1765371207987,0.05813,91894.0,91893.0,0.52573062]
[1765371208185,0.05713,91894.0,91893.0,0.52573062]
[1765371208903,0.05713,91894.0,91893.0,0.44755124]
[1765371209596,0.05745,91900.0,91899.0,0.05734]
[1765371209800,0.05745,91900.0,91899.0,0.08740124]
[1765371211300,0.05945,91900.0,91899.0,0.09828184]
[1765371212291,0.05945,91900.0,91899.0,0.15694199]
[1765371213701,0.05945,91900.0,91899.0,0.09960199]
[1765371214103,0.05945,91900.0,91899.0,0.12895199]
[1765371214604,0.05945,91900.0,91899.0,0.15694199]
[1765371216703,0.05945,91900.0,91899.0,0.12895199]
[1765371217003,0.05945,91900.0,91899.0,0.15694199]
[1765371217198,0.002,91900.0,91899.0,0.15694199]
[1765371217505,0.002,91900.0,91899.0,0.09828184]
[1765371219807,0.01196667,91915.0,91899.0,0.09828184]
[1765371219808,0.05853797,91915.0,91914.0,0.0682188]
[1765371220106,0.05853797,91915.0,91914.0,0.09828004]
[1765371220604,0.06941667,91915.0,91914.0,0.09828004]
[1765371221305,0.07341667,91915.0,91914.0,0.15692892]
[1765371221608,0.07541667,91915.0,91914.0,0.15692892]
[1765371223106,0.07541667,91915.0,91914.0,0.15644194]
[1765371225196,0.07541667,91915.0,91914.0,0.09779306]
[1765371226610,0.07141667,91915.0,91914.0,0.09779306]
[1765371226907,0.07441667,91915.0,91914.0,0.09779306]
[1765371228406,0.07241667,91915.0,91914.0,0.09779306]
[1765371228713,0.07441667,91915.0,91914.0,0.09779306]
[1765371230013,0.04504667,91915.0,91914.0,0.09779306]
[1765371230213,0.04504667,91915.0,91914.0,0.15644194]
[1765371230409,0.03416797,91915.0,91914.0,0.15644194]
[1765371230616,0.03116797,91915.0,91914.0,0.09779306]
[1765371230913,0.03316797,91915.0,91914.0,0.09779306]
[1765371232108,0.03116797,91915.0,91914.0,0.09779306]
[1765371232311,0.03216797,91915.0,91914.0,0.09779306]
[1765371232512,0.03016797,91915.0,91914.0,0.09779306]
[1765371233613,0.00208797,91915.0,91914.0,0.09779306]
[1765371234816,0.00016319,91924.0,91923.0,0.0682177]
[1765371235114,0.00016319,91924.0,91923.0,0.09779196]
[1765371235618,0.53316,91933.0,91932.0,0.05734]
[1765371235809,0.50508,91933.0,91932.0,0.08691426]
[1765371236007,0.53316,91933.0,91932.0,0.09779096]
[1765371236209,0.02808,91933.0,91932.0,0.15640268]
[1765371236410,0.41825,91938.0,91937.0,0.0682161]
[1765371236620,0.41825,91938.0,91937.0,0.09779036]
[1765371238219,0.3608,91938.0,91937.0,0.09779036]
[1765371238518,0.38937,91938.0,91937.0,0.09779036]
[1765371238705,0.39437,91938.0,91937.0,0.09779036]
[1765371238902,0.42209,91938.0,91937.0,0.09779036]
[1765371239715,0.42209,91938.0,91937.0,0.09849036]
[1765371240626,0.42209,91938.0,91937.0,0.13753173]
[1765371241207,0.42209,91938.0,91937.0,0.02957426]
[1765371241617,0.42109,91938.0,91937.0,0.02957426]
[1765371242116,0.42109,91938.0,91937.0,0.05884426]
[1765371242511,0.42109,91938.0,91937.0,0.08753426]
[1765371244020,0.42109,91938.0,91937.0,0.05796]
[1765371244222,0.42109,91938.0,91937.0,0.08751691]
[1765371245424,0.42109,91938.0,91937.0,0.02955691]
[1765371245611,0.42109,91938.0,91937.0,0.08751691]
[1765371245815,0.42049,91938.0,91937.0,0.08751691]
[1765371248125,0.42049,91938.0,91937.0,0.12655828]
[1765371249221,0.42049,91938.0,91937.0,0.02955691]
[1765371249413,0.06029,91938.0,91937.0,0.05884644]
[1765371249618,0.42109,91938.0,91937.0,0.05884644]
[1765371250616,0.42109,91938.0,91937.0,0.02421979]
[1765371250816,0.42109,91938.0,91928.0,0.00016319]
[1765371250817,0.07497,91935.0,91934.0,0.02928953]
[1765371251016,0.05704,91932.0,91931.0,0.02928953]
[1765371251216,0.067917,91929.0,91928.0,0.02945272]
[1765371251418,0.067917,91929.0,91928.0,0.00016319]
[1765371253722,0.074917,91929.0,91928.0,0.02903319]
[1765371254022,0.579877,91929.0,91928.0,0.05846319]
[1765371254232,0.579877,91929.0,91928.0,0.00016319]
[1765371255635,0.579877,91929.0,91928.0,0.02903319]
[1765371256033,0.579877,91929.0,91928.0,0.00016319]
[1765371257731,0.579877,91929.0,91928.0,0.02903319]
[1765371259032,0.074917,91929.0,91928.0,0.05846319]
[1765371259237,0.579917,91929.0,91928.0,0.05846319]
[1765371260334,0.575917,91929.0,91928.0,0.05846319]
[1765371260530,0.579917,91929.0,91928.0,0.05846319]
[1765371261135,0.575917,91929.0,91928.0,0.05846319]
[1765371261334,0.578917,91929.0,91928.0,0.05846319]
[1765371262945,0.578917,91929.0,91928.0,0.08793576]
[1765371263640,0.939717,91929.0,91928.0,0.08793576]
[1765371264738,0.939717,91929.0,91928.0,0.05850576]
[1765371264930,0.939717,91929.0,91928.0,0.02963576]
[1765371265735,0.936717,91929.0,91928.0,0.02963576]
[1765371265934,0.939717,91929.0,91928.0,0.02963576]
[1765371266136,0.939717,91929.0,91928.0,0.11724862]
[1765371266332,0.939717,91929.0,91928.0,0.12812572]
[1765371267046,0.92884,91929.0,91928.0,0.09881286]
[1765371267546,0.511,91929.0,91928.0,0.09881286]
[1765371267743,0.511,91929.0,91928.0,0.15742407]
[1765371267940,0.56759,91929.0,91928.0,0.15742407]
[1765371268452,0.006,91929.0,91928.0,0.09881286]
[1765371268751,0.03466,91929.0,91928.0,0.09881286]
[1765371268941,0.03366,91929.0,91928.0,0.09881286]
[1765371269242,0.005,91929.0,91928.0,0.09881286]
[1765371270245,0.05959,91929.0,91928.0,0.09881286]
[1765371270444,0.05759,91929.0,91928.0,0.09881286]
[1765371270749,0.05759,91929.0,91928.0,0.17701081]
[1765371271138,0.05659,91929.0,91928.0,0.09881286]
[1765371277855,0.067467,91929.0,91928.0,0.09881286]
[1765371278250,0.067467,91929.0,91928.0,0.02963576]
[1765371279453,0.067467,91929.0,91928.0,0.08599576]
[1765371281156,0.067467,91929.0,91928.0,0.14464772]
[1765371284257,0.05659,91929.0,91928.0,0.14464772]
[1765371284453,0.067467,91929.0,91928.0,0.14464772]
[1765371285353,0.067467,91929.0,91928.0,0.08599576]
[1765371286753,0.010877,91929.0,91928.0,0.08599576]
[1765371287057,0.4282668,91935.0,91934.0,0.0672364]
[1765371287252,0.92235,91935.0,91934.0,0.09670897]
[1765371287453,0.41739,91935.0,91934.0,0.09670897]
[1765371287657,0.38946,91935.0,91934.0,0.09670897]
[1765371287855,0.41739,91935.0,91934.0,0.09670897]
[1765371288458,0.41839,91935.0,91934.0,0.09670897]
[1765371289558,0.41939,91935.0,91934.0,0.09670897]
[1765371292757,0.39146,91935.0,91934.0,0.09670897]
[1765371292963,0.002,91935.0,91934.0,0.09670897]
[1765371293856,0.002,91935.0,91934.0,0.10735048]
[1765371294061,0.37949738,91965.0,91946.0,0.067235]
[1765371294257,0.37949738,91965.0,91946.0,0.09670757]
[1765371294258,0.01869738,91965.0,91946.0,0.09670757]
[1765371294460,0.56283598,91960.0,91946.0,0.09670757]
[1765371294663,0.15631598,91956.0,91946.0,0.09670757]